[Event "*** Titled Tuesday Blitz"]
[Site "Chess.com"]
[Date "2020.04.14"]
[Round "5"]
[White "Jadro9"]
[Black "malandragem"]
[Result "1-0"]
[WhiteElo "2699"]
[BlackElo "2515"]
[TimeControl "180+1"]
[EndTime "10:52:11 PDT"]
[Termination "Jadro9 won by resignation"]

1. e4 {[%clk 0:03:00.9]} 1... c5 {[%clk 0:02:59.6]} 2. Nf3 {[%clk 0:03:00.8]}
2... e6 {[%clk 0:03:00]} 3. b3 {[%clk 0:03:00.7]} 3... d5 {[%clk 0:02:57.8]} 4.
exd5 {[%clk 0:03:00.4]} 4... exd5 {[%clk 0:02:56.3]} 5. Bb5+ {[%clk 0:03:00.6]}
5... Bd7 {[%clk 0:02:54.1]} 6. Bxd7+ {[%clk 0:02:59.8]} 6... Qxd7 {[%clk
0:02:52.9]} 7. O-O {[%clk 0:02:59.9]} 7... Nc6 {[%clk 0:02:41.9]} 8. d4 {[%clk
0:02:54.1]} 8... O-O-O {[%clk 0:02:41.5]} 9. Be3 {[%clk 0:02:49.5]} 9... Nf6
{[%clk 0:02:33.1]} 10. Nc3 {[%clk 0:02:40.9]} 10... Be7 {[%clk 0:02:23.4]} 11.
Na4 {[%clk 0:02:40.6]} 11... Ne4 {[%clk 0:02:19.9]} 12. Re1 {[%clk 0:02:37.3]}
12... Rhe8 {[%clk 0:02:20]} 13. dxc5 {[%clk 0:02:33.2]} 13... f5 {[%clk
0:02:02.7]} 14. Nd4 {[%clk 0:02:32.3]} 14... g5 {[%clk 0:02:03]} 15. Nxc6 {[%clk
0:02:28]} 15... Qxc6 {[%clk 0:02:03.9]} 16. Bd4 {[%clk 0:02:27.7]} 16... g4
{[%clk 0:02:02.2]} 17. Rc1 {[%clk 0:02:13]} 17... Kb8 {[%clk 0:02:02.4]} 18. Qd3
{[%clk 0:02:02.1]} 18... Bg5 {[%clk 0:02:02.5]} 19. Rcd1 {[%clk 0:02:01.3]}
19... Bf4 {[%clk 0:01:51.9]} 20. g3 {[%clk 0:01:34.6]} 20... Bc7 {[%clk
0:01:36.7]} 21. Be3 {[%clk 0:01:34]} 21... f4 {[%clk 0:01:33.9]} 22. Bxf4 {[%clk
0:01:31.5]} 22... Bxf4 {[%clk 0:01:33.5]} 23. gxf4 {[%clk 0:01:32.1]} 23... d4
{[%clk 0:01:34.1]} 24. c3 {[%clk 0:01:26.9]} 24... dxc3 {[%clk 0:01:22.5]} 25.
Qxd8+ {[%clk 0:01:26.5]} 25... Rxd8 {[%clk 0:01:23.4]} 26. Rxd8+ {[%clk
0:01:26.6]} 26... Kc7 {[%clk 0:01:24.1]} 27. Rf8 {[%clk 0:01:03.6]} 27... Qd5
{[%clk 0:01:17.5]} 28. Re8 {[%clk 0:00:48.7]} 28... c2 {[%clk 0:01:17.2]} 29.
R8xe4 {[%clk 0:00:37.7]} 29... Qxe4 {[%clk 0:00:42.3]} 30. Rxe4 {[%clk
0:00:37.1]} 30... c1=Q+ {[%clk 0:00:43.2]} 31. Kg2 {[%clk 0:00:37.8]} 31... Qd1
{[%clk 0:00:43.8]} 32. Re3 {[%clk 0:00:36.9]} 32... Qd5+ {[%clk 0:00:43.9]} 33.
Kg3 {[%clk 0:00:36]} 33... Qh5 {[%clk 0:00:44.2]} 34. f5 {[%clk 0:00:26.8]}
34... Qxf5 {[%clk 0:00:42.3]} 35. Nc3 {[%clk 0:00:23.7]} 35... h5 {[%clk
0:00:37.7]} 36. b4 {[%clk 0:00:21.1]} 36... a5 {[%clk 0:00:35.8]} 37. a3 {[%clk
0:00:20.9]} 37... axb4 {[%clk 0:00:27.6]} 38. axb4 {[%clk 0:00:21.4]} 38... Qg5
{[%clk 0:00:23.9]} 39. Ne4 {[%clk 0:00:19.4]} 39... h4+ {[%clk 0:00:23.7]} 40.
Kg2 {[%clk 0:00:19.9]} 40... Qf4 {[%clk 0:00:20.9]} 41. Nd6 {[%clk 0:00:18.2]}
41... g3 {[%clk 0:00:21]} 42. hxg3 {[%clk 0:00:18]} 42... hxg3 {[%clk
0:00:20.8]} 43. Rxg3 {[%clk 0:00:16.6]} 43... Qxb4 {[%clk 0:00:21]} 44. Rg7+
{[%clk 0:00:16.9]} 44... Kc6 {[%clk 0:00:20.2]} 45. Nxb7 {[%clk 0:00:17.3]}
45... Qe4+ {[%clk 0:00:18.4]} 46. Kg1 {[%clk 0:00:15.2]} 46... Qb1+ {[%clk
0:00:18.1]} 47. Kh2 {[%clk 0:00:14.5]} 47... Qa1 {[%clk 0:00:15.5]} 48. Nd8+
{[%clk 0:00:10.1]} 48... Kxc5 {[%clk 0:00:16]} 49. f4 {[%clk 0:00:09.5]} 49...
Kb6 {[%clk 0:00:13.3]} 50. Ne6 {[%clk 0:00:09.2]} 50... Qb2+ {[%clk 0:00:12.6]}
51. Kg3 {[%clk 0:00:09.2]} 51... Qe2 {[%clk 0:00:12.6]} 52. f5 {[%clk 0:00:09]}
52... Qe1+ {[%clk 0:00:12.1]} 53. Kf4 {[%clk 0:00:09.4]} 53... Qf1+ {[%clk
0:00:12.3]} 54. Ke5 {[%clk 0:00:09.6]} 54... Qa1+ {[%clk 0:00:12.8]} 55. Kd6
{[%clk 0:00:09.4]} 55... Qd1+ {[%clk 0:00:13.4]} 56. Ke7 {[%clk 0:00:09.7]}
56... Kc6 {[%clk 0:00:12.5]} 57. Rg5 {[%clk 0:00:05.3]} 57... Qd7+ {[%clk
0:00:12.3]} 58. Kf6 {[%clk 0:00:05.8]} 58... Qh7 {[%clk 0:00:11.9]} 59. Rg6
{[%clk 0:00:05.7]} 59... Qh8+ {[%clk 0:00:12]} 60. Kg5 {[%clk 0:00:06.2]} 60...
Qh3 {[%clk 0:00:11.4]} 61. Nf4+ {[%clk 0:00:03]} 1-0

[Event "*** Titled Tuesday Blitz"]
[Site "Chess.com"]
[Date "2020.04.14"]
[Round "5"]
[White "Trickov"]
[Black "juniortay"]
[Result "1/2-1/2"]
[WhiteElo "2268"]
[BlackElo "2456"]
[TimeControl "180+1"]
[EndTime "10:52:11 PDT"]
[Termination "Game drawn by repetition"]

1. d4 {[%clk 0:03:00.9]} 1... d5 {[%clk 0:02:59.2]} 2. Nf3 {[%clk 0:03:00.9]}
2... c5 {[%clk 0:02:58.7]} 3. dxc5 {[%clk 0:02:59.7]} 3... e6 {[%clk 0:02:57.1]}
4. c4 {[%clk 0:02:59]} 4... Bxc5 {[%clk 0:02:56.6]} 5. cxd5 {[%clk 0:02:58.5]}
5... exd5 {[%clk 0:02:57.5]} 6. e3 {[%clk 0:02:57.3]} 6... Nf6 {[%clk
0:02:57.3]} 7. Nc3 {[%clk 0:02:57.1]} 7... O-O {[%clk 0:02:56.9]} 8. a3 {[%clk
0:02:56.3]} 8... a6 {[%clk 0:02:55.2]} 9. Bd2 {[%clk 0:02:55.3]} 9... Nc6 {[%clk
0:02:55.1]} 10. Rc1 {[%clk 0:02:55.4]} 10... Ba7 {[%clk 0:02:55.2]} 11. Be2
{[%clk 0:02:53.9]} 11... Re8 {[%clk 0:02:54]} 12. O-O {[%clk 0:02:53.2]} 12...
Qd6 {[%clk 0:02:53.1]} 13. Na4 {[%clk 0:02:50]} 13... Ne4 {[%clk 0:02:50.7]} 14.
Bc3 {[%clk 0:02:39.6]} 14... Bg4 {[%clk 0:02:48.1]} 15. Nd4 {[%clk 0:02:25.7]}
15... Bb8 {[%clk 0:02:40.7]} 16. g3 {[%clk 0:02:23.2]} 16... Bh3 {[%clk
0:02:40.8]} 17. Re1 {[%clk 0:02:13.6]} 17... Ne5 {[%clk 0:02:39.1]} 18. Nf3
{[%clk 0:02:03.3]} 18... Ng4 {[%clk 0:02:28.1]} 19. Qd4 {[%clk 0:01:52.1]} 19...
f6 {[%clk 0:02:21.1]} 20. Nb6 {[%clk 0:01:47.2]} 20... Ba7 {[%clk 0:02:15.7]}
21. Qxd5+ {[%clk 0:01:43]} 21... Qxd5 {[%clk 0:02:10]} 22. Nxd5 {[%clk
0:01:42.6]} 22... Nexf2 {[%clk 0:02:07.1]} 23. Bd4 {[%clk 0:01:39.6]} 23... Bxd4
{[%clk 0:01:38.3]} 24. Nxd4 {[%clk 0:01:38.5]} 24... Rad8 {[%clk 0:01:24.4]} 25.
Bc4 {[%clk 0:01:37.4]} 25... Kh8 {[%clk 0:01:22.6]} 26. Nf4 {[%clk 0:01:27.9]}
26... b5 {[%clk 0:01:13]} 27. Be2 {[%clk 0:01:05]} 27... g5 {[%clk 0:01:05.4]}
28. Bxg4 {[%clk 0:00:44.1]} 28... gxf4 {[%clk 0:00:55.6]} 29. Kxf2 {[%clk
0:00:39.6]} 29... fxe3+ {[%clk 0:00:54.8]} 30. Rxe3 {[%clk 0:00:39.2]} 30...
Bxg4 {[%clk 0:00:54.7]} 31. Rxe8+ {[%clk 0:00:36.8]} 31... Rxe8 {[%clk
0:00:55.6]} 32. Rc6 {[%clk 0:00:32.3]} 32... Re4 {[%clk 0:00:52.7]} 33. Nf3
{[%clk 0:00:27.6]} 33... Kg7 {[%clk 0:00:48]} 34. Rxa6 {[%clk 0:00:25]} 34...
Rc4 {[%clk 0:00:45.4]} 35. Ra7+ {[%clk 0:00:24.2]} 35... Kh6 {[%clk 0:00:43.8]}
36. Re7 {[%clk 0:00:24.3]} 36... b4 {[%clk 0:00:36.5]} 37. axb4 {[%clk
0:00:22.1]} 37... Rxb4 {[%clk 0:00:37.4]} 38. Re3 {[%clk 0:00:20.2]} 38... Rxb2+
{[%clk 0:00:36.7]} 39. Kg1 {[%clk 0:00:20.6]} 39... Bh3 {[%clk 0:00:31.6]} 40.
Re1 {[%clk 0:00:16.4]} 40... Rg2+ {[%clk 0:00:29.3]} 41. Kh1 {[%clk 0:00:15.5]}
41... Rf2 {[%clk 0:00:29.7]} 42. Nh4 {[%clk 0:00:13.9]} 42... Kg5 {[%clk
0:00:24.3]} 43. Kg1 {[%clk 0:00:13.9]} 43... Rb2 {[%clk 0:00:23.2]} 44. Ra1
{[%clk 0:00:13.5]} 44... h5 {[%clk 0:00:21.6]} 45. Ra5+ {[%clk 0:00:12.4]} 45...
f5 {[%clk 0:00:21.5]} 46. Ra1 {[%clk 0:00:12.3]} 46... f4 {[%clk 0:00:19.3]} 47.
Ra5+ {[%clk 0:00:11.7]} 47... Kg4 {[%clk 0:00:19]} 48. Ra1 {[%clk 0:00:08.9]}
48... fxg3 {[%clk 0:00:16.2]} 49. hxg3 {[%clk 0:00:08.9]} 49... Kxg3 {[%clk
0:00:16.6]} 50. Ng6 {[%clk 0:00:09]} 50... Rg2+ {[%clk 0:00:15.4]} 51. Kh1
{[%clk 0:00:09]} 51... Rf2 {[%clk 0:00:15.7]} 52. Ra3+ {[%clk 0:00:07.4]} 52...
Kg4 {[%clk 0:00:09.2]} 53. Ne5+ {[%clk 0:00:07.3]} 53... Kh4 {[%clk 0:00:09.5]}
54. Ng6+ {[%clk 0:00:07.1]} 54... Kg5 {[%clk 0:00:07.6]} 55. Rxh3 {[%clk
0:00:05.7]} 55... Kxg6 {[%clk 0:00:06.7]} 56. Ra3 {[%clk 0:00:06.2]} 56... Rf6
{[%clk 0:00:06.3]} 57. Ra4 {[%clk 0:00:05.6]} 57... Rb6 {[%clk 0:00:06.6]} 58.
Kh2 {[%clk 0:00:05.6]} 58... Rb3 {[%clk 0:00:06.5]} 59. Kg2 {[%clk 0:00:05.1]}
59... Kg5 {[%clk 0:00:05.7]} 60. Ra5+ {[%clk 0:00:05.1]} 60... Kg4 {[%clk
0:00:05.6]} 61. Ra4+ {[%clk 0:00:05]} 61... Kg5 {[%clk 0:00:05.9]} 62. Ra5+
{[%clk 0:00:05.2]} 62... Kg4 {[%clk 0:00:06.2]} 63. Ra4+ {[%clk 0:00:05.5]}
63... Kg5 {[%clk 0:00:05.8]} 1/2-1/2

[Event "*** Titled Tuesday Blitz"]
[Site "Chess.com"]
[Date "2020.04.14"]
[Round "5"]
[White "ChessWarrior7197"]
[Black "temus_galaktionov"]
[Result "0-1"]
[WhiteElo "2905"]
[BlackElo "2787"]
[TimeControl "180+1"]
[EndTime "10:52:15 PDT"]
[Termination "temus_galaktionov won by checkmate"]

1. e4 {[%clk 0:03:00.9]} 1... c6 {[%clk 0:02:59.3]} 2. d4 {[%clk 0:03:00.8]}
2... g6 {[%clk 0:02:59.9]} 3. f4 {[%clk 0:02:59.2]} 3... Bg7 {[%clk 0:03:00.8]}
4. c3 {[%clk 0:02:57.9]} 4... d6 {[%clk 0:03:00.7]} 5. Nf3 {[%clk 0:02:57]} 5...
Nd7 {[%clk 0:03:00.1]} 6. Bd3 {[%clk 0:02:56.3]} 6... e5 {[%clk 0:02:59.7]} 7.
O-O {[%clk 0:02:56.4]} 7... Ngf6 {[%clk 0:02:58.2]} 8. Nbd2 {[%clk 0:02:50.3]}
8... O-O {[%clk 0:02:56.8]} 9. fxe5 {[%clk 0:02:48.3]} 9... dxe5 {[%clk
0:02:56.2]} 10. Nc4 {[%clk 0:02:48.6]} 10... exd4 {[%clk 0:02:51.6]} 11. cxd4
{[%clk 0:02:49.5]} 11... Nb6 {[%clk 0:02:48.2]} 12. Nce5 {[%clk 0:02:46.3]}
12... Be6 {[%clk 0:02:45.5]} 13. Bg5 {[%clk 0:02:43.7]} 13... h6 {[%clk
0:02:44.7]} 14. Bh4 {[%clk 0:02:37.1]} 14... Qc7 {[%clk 0:02:31.5]} 15. Rc1
{[%clk 0:02:36.3]} 15... Rad8 {[%clk 0:02:24.7]} 16. d5 {[%clk 0:02:34.2]} 16...
Bc8 {[%clk 0:02:18.1]} 17. dxc6 {[%clk 0:02:34]} 17... g5 {[%clk 0:02:04.9]} 18.
Bf2 {[%clk 0:02:07.5]} 18... Nxe4 {[%clk 0:02:03.1]} 19. cxb7 {[%clk 0:01:49.7]}
19... Qxb7 {[%clk 0:02:02.7]} 20. Qc2 {[%clk 0:01:48.1]} 20... Nxf2 {[%clk
0:02:01.7]} 21. Rxf2 {[%clk 0:01:48.2]} 21... Nd5 {[%clk 0:02:00]} 22. Be4
{[%clk 0:01:43.6]} 22... Qb6 {[%clk 0:01:54.5]} 23. Nc6 {[%clk 0:01:39.8]} 23...
Nb4 {[%clk 0:01:52.4]} 24. Nxb4 {[%clk 0:01:37.3]} 24... Qxb4 {[%clk 0:01:53.3]}
25. h3 {[%clk 0:01:24]} 25... Be6 {[%clk 0:01:52.2]} 26. a3 {[%clk 0:01:22.2]}
26... Qb6 {[%clk 0:01:51]} 27. Qb1 {[%clk 0:00:57.8]} 27... f5 {[%clk
0:01:36.5]} 28. Rc6 {[%clk 0:00:54.3]} 28... Qb3 {[%clk 0:01:29.7]} 29. Bc2
{[%clk 0:00:48.3]} 29... Qd5 {[%clk 0:01:29.3]} 30. Ra6 {[%clk 0:00:37.1]} 30...
Qc4 {[%clk 0:01:20.9]} 31. Qf1 {[%clk 0:00:32]} 31... Qxf1+ {[%clk 0:01:19]} 32.
Rxf1 {[%clk 0:00:32.9]} 32... Bc4 {[%clk 0:01:19.1]} 33. Rxa7 {[%clk 0:00:33.5]}
33... Bxf1 {[%clk 0:01:19]} 34. Kxf1 {[%clk 0:00:33.4]} 34... Bxb2 {[%clk
0:01:18.9]} 35. a4 {[%clk 0:00:31.8]} 35... Ra8 {[%clk 0:01:05.5]} 36. Rb7
{[%clk 0:00:30.7]} 36... Bc3 {[%clk 0:01:01]} 37. Rc7 {[%clk 0:00:29.5]} 37...
Bb4 {[%clk 0:00:58.1]} 38. Rb7 {[%clk 0:00:28.4]} 38... Bc3 {[%clk 0:00:52.9]}
39. Rc7 {[%clk 0:00:28.4]} 39... Ba5 {[%clk 0:00:52.5]} 40. Rb7 {[%clk
0:00:26.4]} 40... Rab8 {[%clk 0:00:43.5]} 41. Rxb8 {[%clk 0:00:25.8]} 41... Rxb8
{[%clk 0:00:44.4]} 42. Bxf5 {[%clk 0:00:26.4]} 42... Rb2 {[%clk 0:00:43.8]} 43.
Nd4 {[%clk 0:00:20.2]} 43... Bb6 {[%clk 0:00:38.3]} 44. Be6+ {[%clk 0:00:20.1]}
44... Kh7 {[%clk 0:00:34.8]} 45. Bf5+ {[%clk 0:00:17.2]} 45... Kg7 {[%clk
0:00:33.4]} 46. Ne2 {[%clk 0:00:18.1]} 46... Ra2 {[%clk 0:00:28.5]} 47. g4
{[%clk 0:00:16.7]} 47... Rxa4 {[%clk 0:00:27.3]} 48. Kg2 {[%clk 0:00:16.3]}
48... Kf6 {[%clk 0:00:26.7]} 49. Ng3 {[%clk 0:00:15.8]} 49... Ke5 {[%clk
0:00:22.6]} 50. Nh5 {[%clk 0:00:14.7]} 50... Ra2+ {[%clk 0:00:20.5]} 51. Kf3
{[%clk 0:00:15.1]} 51... Ra3+ {[%clk 0:00:21.4]} 52. Kg2 {[%clk 0:00:15.6]}
52... Bd4 {[%clk 0:00:20.6]} 53. Bh7 {[%clk 0:00:15.3]} 53... Kd6 {[%clk
0:00:19.3]} 54. Ng3 {[%clk 0:00:14.9]} 54... Ke5 {[%clk 0:00:18.9]} 55. Nh5
{[%clk 0:00:14.9]} 55... Ra6 {[%clk 0:00:19.4]} 56. Bg8 {[%clk 0:00:14.7]} 56...
Ke4 {[%clk 0:00:19]} 57. Ng3+ {[%clk 0:00:14.8]} 57... Ke5 {[%clk 0:00:18.5]}
58. Nf5 {[%clk 0:00:14.2]} 58... Bc5 {[%clk 0:00:17.7]} 59. Bc4 {[%clk
0:00:13.6]} 59... Rb6 {[%clk 0:00:17.6]} 60. Kf3 {[%clk 0:00:13.5]} 60... h5
{[%clk 0:00:17.7]} 61. Bd3 {[%clk 0:00:12.7]} 61... h4 {[%clk 0:00:17.7]} 62.
Bc2 {[%clk 0:00:09.7]} 62... Rb2 {[%clk 0:00:16.8]} 63. Ba4 {[%clk 0:00:10.1]}
63... Ra2 {[%clk 0:00:16.6]} 64. Bc6 {[%clk 0:00:09.7]} 64... Rh2 {[%clk
0:00:16.7]} 65. Nh6 {[%clk 0:00:06]} 65... Rf2# {[%clk 0:00:16.7]} 0-1

[Event "*** Titled Tuesday Blitz"]
[Site "Chess.com"]
[Date "2020.04.14"]
[Round "5"]
[White "iulik86"]
[Black "bangchess21"]
[Result "0-1"]
[WhiteElo "2518"]
[BlackElo "2693"]
[TimeControl "180+1"]
[EndTime "10:52:16 PDT"]
[Termination "bangchess21 won on time"]

1. e4 {[%clk 0:03:00.9]} 1... c5 {[%clk 0:02:36.1]} 2. Nf3 {[%clk 0:03:00.3]}
2... Nc6 {[%clk 0:02:35.5]} 3. d4 {[%clk 0:02:56]} 3... cxd4 {[%clk 0:02:35.8]}
4. Nxd4 {[%clk 0:02:56.9]} 4... g6 {[%clk 0:02:36.4]} 5. c4 {[%clk 0:02:56.2]}
5... Bg7 {[%clk 0:02:34.8]} 6. Nc2 {[%clk 0:02:56.7]} 6... Nf6 {[%clk
0:02:34.6]} 7. Nc3 {[%clk 0:02:56.3]} 7... O-O {[%clk 0:02:34.7]} 8. Be2 {[%clk
0:02:56.4]} 8... d6 {[%clk 0:02:35.2]} 9. O-O {[%clk 0:02:54.9]} 9... Nd7 {[%clk
0:02:35.8]} 10. Bd2 {[%clk 0:02:54.2]} 10... a5 {[%clk 0:02:36.2]} 11. b3 {[%clk
0:02:47.4]} 11... Nc5 {[%clk 0:02:33.5]} 12. Rc1 {[%clk 0:02:43.1]} 12... Bxc3
{[%clk 0:02:09.4]} 13. Bxc3 {[%clk 0:02:42.8]} 13... Nxe4 {[%clk 0:02:10.3]} 14.
Ba1 {[%clk 0:02:38.4]} 14... e5 {[%clk 0:02:09.7]} 15. Ne3 {[%clk 0:02:31.1]}
15... Be6 {[%clk 0:02:07.2]} 16. Bf3 {[%clk 0:02:24.7]} 16... f5 {[%clk
0:02:07.4]} 17. Bxe4 {[%clk 0:02:12]} 17... fxe4 {[%clk 0:02:07]} 18. Qd2 {[%clk
0:02:12.1]} 18... Qe7 {[%clk 0:02:00.8]} 19. Nd5 {[%clk 0:02:09.6]} 19... Qd8
{[%clk 0:01:43.9]} 20. Nc3 {[%clk 0:02:05.4]} 20... Qe7 {[%clk 0:01:29]} 21.
Nxe4 {[%clk 0:02:01]} 21... Rad8 {[%clk 0:01:25.4]} 22. Qe3 {[%clk 0:02:01.1]}
22... Bf5 {[%clk 0:01:23.1]} 23. Ng3 {[%clk 0:01:55.4]} 23... Be6 {[%clk
0:01:21.8]} 24. Rfe1 {[%clk 0:01:53.9]} 24... Nb4 {[%clk 0:01:14.8]} 25. a3
{[%clk 0:01:41.6]} 25... Nc6 {[%clk 0:01:13.9]} 26. a4 {[%clk 0:01:36.9]} 26...
Qf6 {[%clk 0:01:02.1]} 27. Ne4 {[%clk 0:01:27.9]} 27... Qf4 {[%clk 0:00:54.8]}
28. Qxf4 {[%clk 0:01:24.3]} 28... Rxf4 {[%clk 0:00:54.1]} 29. Rcd1 {[%clk
0:01:22.9]} 29... d5 {[%clk 0:00:32.9]} 30. Nc5 {[%clk 0:01:22.1]} 30... Bf7
{[%clk 0:00:30.2]} 31. Bxe5 {[%clk 0:01:18.7]} 31... Nxe5 {[%clk 0:00:25.1]} 32.
Rxe5 {[%clk 0:01:18.2]} 32... b6 {[%clk 0:00:25.7]} 33. Ne6 {[%clk 0:01:02.3]}
33... Bxe6 {[%clk 0:00:23.8]} 34. Rxe6 {[%clk 0:01:02.5]} 34... Kf7 {[%clk
0:00:08.1]} 35. Rxb6 {[%clk 0:00:55.6]} 35... d4 {[%clk 0:00:08.4]} 36. Rd3
{[%clk 0:00:49.2]} 36... Re4 {[%clk 0:00:08.4]} 37. g3 {[%clk 0:00:45.3]} 37...
Re1+ {[%clk 0:00:08.1]} 38. Kg2 {[%clk 0:00:45.4]} 38... Rc1 {[%clk 0:00:09]}
39. Rb7+ {[%clk 0:00:40.4]} 39... Kf6 {[%clk 0:00:08.9]} 40. Kf3 {[%clk
0:00:29.6]} 40... Rc3 {[%clk 0:00:08.1]} 41. Ke4 {[%clk 0:00:28.3]} 41... Rc2
{[%clk 0:00:05.4]} 42. Rf3+ {[%clk 0:00:25.3]} 42... Kg5 {[%clk 0:00:05.1]} 43.
Rxh7 {[%clk 0:00:18.6]} 43... Rc3 {[%clk 0:00:02.2]} 44. h4+ {[%clk 0:00:17.9]}
44... Kg4 {[%clk 0:00:02.5]} 45. Rd3 {[%clk 0:00:14.6]} 45... Rc1 {[%clk
0:00:02.5]} 46. f3+ {[%clk 0:00:05.1]} 46... Kxg3 {[%clk 0:00:02.7]} 47. Rxd4
{[%clk 0:00:04.9]} 47... Re1+ {[%clk 0:00:02.5]} 48. Kd3 {[%clk 0:00:04.2]}
48... Rd1+ {[%clk 0:00:02.8]} 49. Kc3 {[%clk 0:00:04.5]} 49... R1xd4 {[%clk
0:00:03.1]} 50. Rg7 {[%clk 0:00:05]} 50... Rd3+ {[%clk 0:00:03.5]} 51. Kb2
{[%clk 0:00:05.3]} 51... Rxf3 {[%clk 0:00:03.3]} 52. Rxg6+ {[%clk 0:00:04.4]}
52... Kxh4 {[%clk 0:00:03.6]} 53. Rb6 {[%clk 0:00:04]} 53... Kg5 {[%clk
0:00:02.7]} 54. Rb5+ {[%clk 0:00:03.9]} 54... Kf6 {[%clk 0:00:03]} 55. Rxa5
{[%clk 0:00:04.1]} 55... Rb8 {[%clk 0:00:03.5]} 56. Rb5 {[%clk 0:00:04]} 56...
Rxb5 {[%clk 0:00:03.7]} 57. axb5 {[%clk 0:00:04.4]} 57... Ke5 {[%clk 0:00:03.6]}
58. Ka3 {[%clk 0:00:05.1]} 58... Kd6 {[%clk 0:00:03.8]} 59. Ka4 {[%clk 0:00:04]}
59... Rf4 {[%clk 0:00:03.6]} 60. Ka5 {[%clk 0:00:02.5]} 60... Kc5 {[%clk
0:00:03.8]} 0-1

[Event "*** Titled Tuesday Blitz"]
[Site "Chess.com"]
[Date "2020.04.14"]
[Round "5"]
[White "figo13"]
[Black "Donseng"]
[Result "0-1"]
[WhiteElo "2342"]
[BlackElo "2530"]
[TimeControl "180+1"]
[EndTime "10:52:16 PDT"]
[Termination "Donseng won on time"]

1. d4 {[%clk 0:03:00.9]} 1... d5 {[%clk 0:03:00]} 2. c4 {[%clk 0:03:00.8]} 2...
c6 {[%clk 0:03:00.4]} 3. Nc3 {[%clk 0:02:59.9]} 3... Nf6 {[%clk 0:03:00.6]} 4.
Nf3 {[%clk 0:02:58.5]} 4... e6 {[%clk 0:03:00.1]} 5. e3 {[%clk 0:02:58]} 5... a6
{[%clk 0:02:59.5]} 6. Qc2 {[%clk 0:02:55.3]} 6... c5 {[%clk 0:02:58.2]} 7. cxd5
{[%clk 0:02:52.8]} 7... exd5 {[%clk 0:02:59.1]} 8. Be2 {[%clk 0:02:47.3]} 8...
Nc6 {[%clk 0:02:59]} 9. O-O {[%clk 0:02:43.6]} 9... Be6 {[%clk 0:02:57.3]} 10.
dxc5 {[%clk 0:02:38.7]} 10... Bxc5 {[%clk 0:02:57]} 11. Rd1 {[%clk 0:02:39.5]}
11... Ba7 {[%clk 0:02:52]} 12. a3 {[%clk 0:02:39.1]} 12... Rc8 {[%clk
0:02:49.8]} 13. Bd2 {[%clk 0:02:31]} 13... O-O {[%clk 0:02:47]} 14. Rac1 {[%clk
0:02:29.3]} 14... Ne4 {[%clk 0:02:35.5]} 15. Be1 {[%clk 0:02:20.1]} 15... Qe7
{[%clk 0:02:33.8]} 16. Qb1 {[%clk 0:02:17.3]} 16... Nf6 {[%clk 0:02:13.5]} 17.
b4 {[%clk 0:02:09]} 17... Rfd8 {[%clk 0:02:12.6]} 18. Na4 {[%clk 0:01:46.8]}
18... d4 {[%clk 0:02:10.8]} 19. Nxd4 {[%clk 0:01:42.7]} 19... Bxd4 {[%clk
0:01:55.2]} 20. exd4 {[%clk 0:01:40.5]} 20... Nxd4 {[%clk 0:01:56.1]} 21. Bf1
{[%clk 0:01:27.9]} 21... Rxc1 {[%clk 0:01:43.9]} 22. Rxc1 {[%clk 0:01:28.8]}
22... Bf5 {[%clk 0:01:12.4]} 23. Qb2 {[%clk 0:01:21.3]} 23... h6 {[%clk
0:00:36.9]} 24. Bc3 {[%clk 0:01:19]} 24... Nb5 {[%clk 0:00:29.1]} 25. Bxf6
{[%clk 0:01:06.7]} 25... Qxf6 {[%clk 0:00:26.5]} 26. Qxf6 {[%clk 0:01:06.4]}
26... gxf6 {[%clk 0:00:27.4]} 27. Nc5 {[%clk 0:01:06.7]} 27... b6 {[%clk
0:00:12.8]} 28. Na4 {[%clk 0:00:48.7]} 28... Nxa3 {[%clk 0:00:12.4]} 29. Nxb6
{[%clk 0:00:48.2]} 29... Rb8 {[%clk 0:00:09.2]} 30. Nd5 {[%clk 0:00:45.8]} 30...
Kg7 {[%clk 0:00:08.8]} 31. Bxa6 {[%clk 0:00:41.2]} 31... Be6 {[%clk 0:00:08.6]}
32. Nf4 {[%clk 0:00:28.2]} 32... Rxb4 {[%clk 0:00:07.7]} 33. Nxe6+ {[%clk
0:00:25.7]} 33... fxe6 {[%clk 0:00:07.7]} 34. Bd3 {[%clk 0:00:26.2]} 34... f5
{[%clk 0:00:06.8]} 35. g3 {[%clk 0:00:24.2]} 35... Nb5 {[%clk 0:00:05.2]} 36.
Bxb5 {[%clk 0:00:19]} 36... Rxb5 {[%clk 0:00:05.3]} 37. f4 {[%clk 0:00:19.6]}
37... h5 {[%clk 0:00:04.8]} 38. Rc6 {[%clk 0:00:18.3]} 38... Kf6 {[%clk
0:00:04.6]} 39. Kg2 {[%clk 0:00:18.4]} 39... Rb2+ {[%clk 0:00:04.4]} 40. Kh3
{[%clk 0:00:18.6]} 40... h4 {[%clk 0:00:04.2]} 41. Ra6 {[%clk 0:00:15]} 41...
Rf2 {[%clk 0:00:03.7]} 42. Rb6 {[%clk 0:00:14]} 42... Ke7 {[%clk 0:00:03.7]} 43.
Rb7+ {[%clk 0:00:13.1]} 43... Kd6 {[%clk 0:00:03.8]} 44. Rh7 {[%clk 0:00:13.7]}
44... hxg3 {[%clk 0:00:03.5]} 45. hxg3 {[%clk 0:00:14.6]} 45... Kd5 {[%clk
0:00:03.7]} 46. Rd7+ {[%clk 0:00:08.1]} 46... Ke4 {[%clk 0:00:03.8]} 47. Rd1
{[%clk 0:00:08.6]} 47... Kf3 {[%clk 0:00:03.2]} 48. Rd3+ {[%clk 0:00:08.1]}
48... Ke4 {[%clk 0:00:03.2]} 49. Rb3 {[%clk 0:00:08.3]} 49... Rd2 {[%clk
0:00:03]} 50. Rb6 {[%clk 0:00:07.6]} 50... Kf3 {[%clk 0:00:02.4]} 51. Rb3+
{[%clk 0:00:04.8]} 51... Ke4 {[%clk 0:00:02.1]} 52. Rb6 {[%clk 0:00:04.4]} 52...
Kd5 {[%clk 0:00:02]} 53. Rb5+ {[%clk 0:00:03.9]} 53... Ke4 {[%clk 0:00:01.2]}
54. Re5+ {[%clk 0:00:04.2]} 54... Kf3 {[%clk 0:00:01.1]} 55. Rxe6 {[%clk
0:00:02.1]} 55... Rd1 {[%clk 0:00:01.5]} 56. Kh4 {[%clk 0:00:02]} 56... Rd5
{[%clk 0:00:01.7]} 0-1